[Event "*** Titled Tuesday Blitz"]
[Site "Chess.com"]
[Date "2020.05.19"]
[Round "1"]
[White "Kislov_Oleg"]
[Black "BlackBoarder"]
[Result "0-1"]
[WhiteElo "2345"]
[BlackElo "2651"]
[TimeControl "180+1"]
[EndTime "12:07:51 PDT"]
[Termination "BlackBoarder won by resignation"]

1. e4 {[%clk 0:02:57.7]} 1... e6 {[%clk 0:02:57.4]} 2. d4 {[%clk 0:02:57.5]}
2... d5 {[%clk 0:02:56.8]} 3. Nc3 {[%clk 0:02:57.6]} 3... Bb4 {[%clk 0:02:56.5]}
4. exd5 {[%clk 0:02:57.2]} 4... exd5 {[%clk 0:02:56]} 5. Bd3 {[%clk 0:02:57.3]}
5... Nf6 {[%clk 0:02:48.9]} 6. Ne2 {[%clk 0:02:56.2]} 6... O-O {[%clk 0:02:48]}
7. O-O {[%clk 0:02:54]} 7... c6 {[%clk 0:02:46.3]} 8. Bg5 {[%clk 0:02:50.9]}
8... h6 {[%clk 0:02:45]} 9. Bh4 {[%clk 0:02:44.5]} 9... Re8 {[%clk 0:02:42.4]}
10. a3 {[%clk 0:02:25.9]} 10... Bd6 {[%clk 0:02:39.6]} 11. Bg3 {[%clk
0:02:25.8]} 11... Bg4 {[%clk 0:02:34.2]} 12. f3 {[%clk 0:02:11.8]} 12... Bxg3
{[%clk 0:02:30.4]} 13. Nxg3 {[%clk 0:02:09.9]} 13... Be6 {[%clk 0:02:29.1]} 14.
Qd2 {[%clk 0:01:55.9]} 14... Qb6 {[%clk 0:02:27.6]} 15. Nce2 {[%clk 0:01:50.1]}
15... Nbd7 {[%clk 0:02:26.6]} 16. f4 {[%clk 0:01:36.7]} 16... Bg4 {[%clk
0:02:24.5]} 17. c3 {[%clk 0:01:33.7]} 17... Ne4 {[%clk 0:02:20]} 18. Bxe4 {[%clk
0:01:13.7]} 18... dxe4 {[%clk 0:02:20.9]} 19. f5 {[%clk 0:01:08.7]} 19... Nf6
{[%clk 0:02:07.3]} 20. Nf4 {[%clk 0:00:49.8]} 20... e3 {[%clk 0:01:22]} 21. Qc2
{[%clk 0:00:48.9]} 21... Qc7 {[%clk 0:00:59.4]} 22. h3 {[%clk 0:00:42.3]} 22...
Nd5 {[%clk 0:00:59.4]} 23. Nxd5 {[%clk 0:00:31.1]} 23... Qxg3 {[%clk 0:00:48]}
24. hxg4 {[%clk 0:00:14.7]} 24... cxd5 {[%clk 0:00:44.8]} 25. Qe2 {[%clk
0:00:15.2]} 25... Re4 {[%clk 0:00:45]} 26. Qf3 {[%clk 0:00:14.4]} 26... Qxg4
{[%clk 0:00:43.2]} 27. Qxg4 {[%clk 0:00:14.9]} 27... Rxg4 {[%clk 0:00:43.2]} 28.
Rae1 {[%clk 0:00:15.6]} 28... Re8 {[%clk 0:00:42.9]} 29. Rf3 {[%clk 0:00:15.1]}
29... Rge4 {[%clk 0:00:33.4]} 30. Kf1 {[%clk 0:00:15.2]} 30... h5 {[%clk
0:00:22]} 31. Ke2 {[%clk 0:00:14.6]} 31... Kh7 {[%clk 0:00:22.1]} 32. Rh1 {[%clk
0:00:14.7]} 32... Kh6 {[%clk 0:00:18.9]} 33. Rhh3 {[%clk 0:00:14.3]} 33... Rg4
{[%clk 0:00:16.4]} 34. Rhg3 {[%clk 0:00:09.6]} 34... Kg5 {[%clk 0:00:15.1]} 35.
Rxe3 {[%clk 0:00:08.6]} 35... Rxe3+ {[%clk 0:00:14.6]} 36. Rxe3 {[%clk
0:00:09.5]} 36... Rxg2+ {[%clk 0:00:14.8]} 37. Kd3 {[%clk 0:00:09.5]} 37... h4
{[%clk 0:00:11.9]} 38. Re7 {[%clk 0:00:08.7]} 38... h3 {[%clk 0:00:09.2]} 39.
Rxf7 {[%clk 0:00:08.8]} 39... Kh6 {[%clk 0:00:09.5]} 40. Rf8 {[%clk 0:00:04]}
40... Kh7 {[%clk 0:00:09.6]} 41. f6 {[%clk 0:00:02.7]} 41... gxf6 {[%clk
0:00:05.4]} 42. Rxf6 {[%clk 0:00:02]} 42... h2 {[%clk 0:00:05.3]} 43. Rf7+
{[%clk 0:00:02.1]} 43... Kg6 {[%clk 0:00:05.7]} 44. Rf1 {[%clk 0:00:02.9]} 44...
Rg1 {[%clk 0:00:06]} 0-1

[Event "*** Titled Tuesday Blitz"]
[Site "Chess.com"]
[Date "2020.05.19"]
[Round "1"]
[White "grzechu96"]
[Black "SHIVACalypso"]
[Result "1-0"]
[WhiteElo "2592"]
[BlackElo "2297"]
[TimeControl "180+1"]
[EndTime "12:07:51 PDT"]
[Termination "grzechu96 won on time"]

1. e4 {[%clk 0:03:00.9]} 1... e6 {[%clk 0:02:58.2]} 2. d4 {[%clk 0:03:00.5]}
2... d5 {[%clk 0:02:57.4]} 3. Nc3 {[%clk 0:03:01.1]} 3... Nf6 {[%clk 0:02:55.6]}
4. e5 {[%clk 0:03:00.8]} 4... Nfd7 {[%clk 0:02:54.2]} 5. f4 {[%clk 0:03:01.2]}
5... c5 {[%clk 0:02:54]} 6. Nf3 {[%clk 0:03:01.7]} 6... Nc6 {[%clk 0:02:52.2]}
7. Be3 {[%clk 0:03:02.2]} 7... Be7 {[%clk 0:02:49.2]} 8. Qd2 {[%clk 0:02:57.7]}
8... O-O {[%clk 0:02:47.5]} 9. dxc5 {[%clk 0:02:39.2]} 9... Qa5 {[%clk
0:02:45.1]} 10. a3 {[%clk 0:02:22.4]} 10... Bxc5 {[%clk 0:02:42.8]} 11. Bxc5
{[%clk 0:02:22.4]} 11... Nxc5 {[%clk 0:02:43.3]} 12. Nd4 {[%clk 0:02:09]} 12...
Nxd4 {[%clk 0:02:06.7]} 13. Qxd4 {[%clk 0:02:09.9]} 13... Ne4 {[%clk 0:01:49.3]}
14. b4 {[%clk 0:02:00.9]} 14... Qc7 {[%clk 0:01:45.4]} 15. Nxe4 {[%clk
0:01:59.3]} 15... dxe4 {[%clk 0:01:46.3]} 16. c4 {[%clk 0:01:59.4]} 16... b6
{[%clk 0:01:35.2]} 17. Be2 {[%clk 0:01:54.2]} 17... Bb7 {[%clk 0:01:33.7]} 18.
O-O {[%clk 0:01:54.5]} 18... Rfd8 {[%clk 0:01:31.3]} 19. Qe3 {[%clk 0:01:54.7]}
19... Rd7 {[%clk 0:01:25.2]} 20. Rfd1 {[%clk 0:01:54.1]} 20... Rad8 {[%clk
0:01:22.4]} 21. Rxd7 {[%clk 0:01:52.5]} 21... Rxd7 {[%clk 0:01:22.8]} 22. Rc1
{[%clk 0:01:34.5]} 22... Qd8 {[%clk 0:01:15.4]} 23. Rc2 {[%clk 0:01:26.8]} 23...
Rd1+ {[%clk 0:01:02]} 24. Kf2 {[%clk 0:01:04.2]} 24... Qh4+ {[%clk 0:00:48.9]}
25. Qg3 {[%clk 0:01:04.1]} 25... Qxg3+ {[%clk 0:00:46]} 26. hxg3 {[%clk
0:01:05]} 26... Ra1 {[%clk 0:00:42.8]} 27. Rc3 {[%clk 0:01:05.3]} 27... Ra2
{[%clk 0:00:35.5]} 28. Ke3 {[%clk 0:01:05.3]} 28... Kf8 {[%clk 0:00:35.2]} 29.
g4 {[%clk 0:00:48.4]} 29... Ke7 {[%clk 0:00:35.4]} 30. g5 {[%clk 0:00:48.4]}
30... f6 {[%clk 0:00:28.8]} 31. gxf6+ {[%clk 0:00:46.7]} 31... gxf6 {[%clk
0:00:29.7]} 32. exf6+ {[%clk 0:00:46.8]} 32... Kxf6 {[%clk 0:00:30.6]} 33. g4
{[%clk 0:00:47.4]} 33... h6 {[%clk 0:00:29.2]} 34. Kf2 {[%clk 0:00:20.4]} 34...
e5 {[%clk 0:00:27.2]} 35. fxe5+ {[%clk 0:00:18.6]} 35... Kxe5 {[%clk 0:00:28.1]}
36. Rh3 {[%clk 0:00:18.9]} 36... Kf4 {[%clk 0:00:24.3]} 37. c5 {[%clk
0:00:13.6]} 37... bxc5 {[%clk 0:00:16.1]} 38. bxc5 {[%clk 0:00:14.5]} 38... Ba6
{[%clk 0:00:15.2]} 39. Re3 {[%clk 0:00:14.8]} 39... Bxe2 {[%clk 0:00:15.4]} 40.
Rxe2 {[%clk 0:00:15.7]} 40... e3+ {[%clk 0:00:13.6]} 41. Kf1 {[%clk 0:00:14.6]}
41... Ra1+ {[%clk 0:00:12.4]} 42. Re1 {[%clk 0:00:07.1]} 42... Rxa3 {[%clk
0:00:10.2]} 43. Rc1 {[%clk 0:00:07.4]} 43... Kf3 {[%clk 0:00:10.2]} 44. c6
{[%clk 0:00:07.6]} 44... e2+ {[%clk 0:00:07.9]} 45. Ke1 {[%clk 0:00:06.1]} 1-0

[Event "*** Titled Tuesday Blitz"]
[Site "Chess.com"]
[Date "2020.05.19"]
[Round "1"]
[White "archess2"]
[Black "AleksanderHnydiuk"]
[Result "0-1"]
[WhiteElo "2290"]
[BlackElo "2584"]
[TimeControl "180+1"]
[EndTime "12:07:51 PDT"]
[Termination "AleksanderHnydiuk won by resignation"]

1. d4 {[%clk 0:02:59.8]} 1... Nf6 {[%clk 0:02:59.5]} 2. c4 {[%clk 0:02:58.4]}
2... e6 {[%clk 0:02:59.8]} 3. Nc3 {[%clk 0:02:57.2]} 3... Bb4 {[%clk 0:02:58.8]}
4. Qc2 {[%clk 0:02:54.5]} 4... O-O {[%clk 0:02:58.6]} 5. e4 {[%clk 0:02:52.7]}
5... d5 {[%clk 0:02:58.2]} 6. e5 {[%clk 0:02:52.7]} 6... Ne4 {[%clk 0:02:57.9]}
7. Bd3 {[%clk 0:02:52.4]} 7... c5 {[%clk 0:02:57.5]} 8. Ne2 {[%clk 0:02:52]}
8... Nc6 {[%clk 0:02:56.9]} 9. O-O {[%clk 0:02:44.1]} 9... cxd4 {[%clk 0:01:47]}
10. Nxe4 {[%clk 0:02:39]} 10... dxe4 {[%clk 0:01:46.9]} 11. Bxe4 {[%clk
0:02:38.5]} 11... h6 {[%clk 0:01:45.5]} 12. Bf4 {[%clk 0:02:35.9]} 12... Bc5
{[%clk 0:01:34.7]} 13. a3 {[%clk 0:02:33]} 13... a5 {[%clk 0:01:34.1]} 14. Rfd1
{[%clk 0:02:24.6]} 14... Bd7 {[%clk 0:01:32.3]} 15. Ng3 {[%clk 0:02:20.3]} 15...
Qh4 {[%clk 0:01:29.2]} 16. Qd2 {[%clk 0:02:11.7]} 16... Rad8 {[%clk 0:01:25.2]}
17. Ne2 {[%clk 0:02:00.1]} 17... Nxe5 {[%clk 0:01:07]} 18. Bxe5 {[%clk 0:01:45]}
18... Qxe4 {[%clk 0:01:06.7]} 19. Bxd4 {[%clk 0:01:45.1]} 19... Bc6 {[%clk
0:01:04.5]} 20. f3 {[%clk 0:01:45.3]} 20... Qf5 {[%clk 0:00:45.1]} 21. Qe3
{[%clk 0:01:44.3]} 21... Rxd4 {[%clk 0:00:22.8]} 22. Nxd4 {[%clk 0:01:41]} 22...
Qf6 {[%clk 0:00:22.5]} 23. b4 {[%clk 0:01:29.6]} 23... axb4 {[%clk 0:00:20.6]}
24. axb4 {[%clk 0:01:29.3]} 24... Bxb4 {[%clk 0:00:18.3]} 25. Nxc6 {[%clk
0:01:29.4]} 25... bxc6 {[%clk 0:00:18.8]} 26. Kh1 {[%clk 0:01:27.1]} 26... c5
{[%clk 0:00:17.1]} 27. Ra7 {[%clk 0:01:23.3]} 27... Qf5 {[%clk 0:00:15.9]} 28.
h3 {[%clk 0:01:20.9]} 28... Qc2 {[%clk 0:00:12.4]} 29. Rc1 {[%clk 0:01:19.4]}
29... Qb2 {[%clk 0:00:12.5]} 30. Raa1 {[%clk 0:01:17]} 30... Bd2 {[%clk
0:00:11.4]} 31. Qg1 {[%clk 0:01:10.4]} 31... Bxc1 {[%clk 0:00:11.4]} 32. Qxc1
{[%clk 0:01:10.8]} 32... Qxc1+ {[%clk 0:00:10.6]} 33. Rxc1 {[%clk 0:01:11.7]}
33... Rd8 {[%clk 0:00:09.9]} 34. Kg1 {[%clk 0:01:11.7]} 34... Rd2 {[%clk
0:00:09.4]} 35. g4 {[%clk 0:01:11.1]} 35... g5 {[%clk 0:00:09.1]} 36. Ra1 {[%clk
0:01:09]} 36... Rc2 {[%clk 0:00:08.5]} 37. Ra4 {[%clk 0:01:09.6]} 37... Kg7
{[%clk 0:00:08.1]} 38. Kf1 {[%clk 0:01:09.9]} 38... Kf6 {[%clk 0:00:08.3]} 39.
Ke1 {[%clk 0:01:08.6]} 39... Ke5 {[%clk 0:00:08.5]} 40. Kd1 {[%clk 0:01:08.9]}
40... Rc3 {[%clk 0:00:08.9]} 41. Ra5 {[%clk 0:01:08.7]} 41... Rxc4 {[%clk
0:00:08.5]} 42. Ke2 {[%clk 0:01:09.3]} 42... Kf4 {[%clk 0:00:07.9]} 43. Kd3
{[%clk 0:01:09.1]} 43... Rd4+ {[%clk 0:00:07.2]} 44. Kc3 {[%clk 0:01:09.4]}
44... Rd5 {[%clk 0:00:08.1]} 45. Kc4 {[%clk 0:01:08.4]} 45... Kxf3 {[%clk
0:00:07.4]} 46. Ra3+ {[%clk 0:01:08.6]} 46... Kf4 {[%clk 0:00:07.3]} 47. Ra1
{[%clk 0:01:08.6]} 47... Ke5 {[%clk 0:00:07]} 48. Re1+ {[%clk 0:01:07.7]} 48...
Kd6 {[%clk 0:00:07]} 49. Rf1 {[%clk 0:01:07.9]} 49... Rd4+ {[%clk 0:00:07]} 50.
Kc3 {[%clk 0:01:08.2]} 50... Rf4 {[%clk 0:00:06.9]} 51. Ra1 {[%clk 0:01:07.5]}
51... Rf3+ {[%clk 0:00:04.6]} 52. Kc4 {[%clk 0:01:07.6]} 52... Rxh3 {[%clk
0:00:05.4]} 53. Ra6+ {[%clk 0:01:07.7]} 53... Ke5 {[%clk 0:00:05.6]} 54. Kxc5
{[%clk 0:01:08]} 54... Rh4 {[%clk 0:00:05.4]} 55. Ra4 {[%clk 0:01:07.2]} 55...
h5 {[%clk 0:00:05.3]} 56. Ra2 {[%clk 0:01:05.9]} 56... Rxg4 {[%clk 0:00:05.3]}
57. Re2+ {[%clk 0:01:05.8]} 57... Kf6 {[%clk 0:00:05.6]} 58. Rf2+ {[%clk
0:01:05.8]} 58... Kg6 {[%clk 0:00:05.8]} 59. Kd6 {[%clk 0:01:05.5]} 59... h4
{[%clk 0:00:05.9]} 60. Ke7 {[%clk 0:01:04.8]} 60... f5 {[%clk 0:00:05.9]} 61.
Kxe6 {[%clk 0:01:04.5]} 61... Re4+ {[%clk 0:00:06.4]} 62. Kd5 {[%clk 0:01:04.4]}
62... h3 {[%clk 0:00:06.6]} 63. Rh2 {[%clk 0:01:04.3]} 63... g4 {[%clk
0:00:06.8]} 64. Ra2 {[%clk 0:01:04.2]} 64... Kg5 {[%clk 0:00:07]} 65. Kd6 {[%clk
0:01:02.2]} 65... g3 {[%clk 0:00:07]} 66. Ra3 {[%clk 0:01:02]} 66... Kg4 {[%clk
0:00:06.4]} 67. Kd5 {[%clk 0:01:01.1]} 67... h2 {[%clk 0:00:06.4]} 68. Ra1
{[%clk 0:01:01.2]} 68... g2 {[%clk 0:00:06.6]} 69. Ra2 {[%clk 0:01:01.5]} 69...
h1=Q {[%clk 0:00:06.8]} 0-1

[Event "*** Titled Tuesday Blitz"]
[Site "Chess.com"]
[Date "2020.05.19"]
[Round "1"]
[White "Shuvalov"]
[Black "Alexander_Moskalenko"]
[Result "0-1"]
[WhiteElo "2424"]
[BlackElo "2820"]
[TimeControl "180+1"]
[EndTime "12:07:53 PDT"]
[Termination "Alexander_Moskalenko won by checkmate"]

1. Nf3 {[%clk 0:03:00.4]} 1... a6 {[%clk 0:02:52.2]} 2. e4 {[%clk 0:02:56.1]}
2... b5 {[%clk 0:02:52.3]} 3. d4 {[%clk 0:02:55.7]} 3... Bb7 {[%clk 0:02:52.5]}
4. Bd3 {[%clk 0:02:55.9]} 4... e6 {[%clk 0:02:52.9]} 5. O-O {[%clk 0:02:55.4]}
5... Nf6 {[%clk 0:02:53.5]} 6. Nbd2 {[%clk 0:02:52.6]} 6... c5 {[%clk
0:02:48.9]} 7. c3 {[%clk 0:02:51.7]} 7... Be7 {[%clk 0:02:38.4]} 8. a4 {[%clk
0:02:44.9]} 8... c4 {[%clk 0:02:33.9]} 9. Bc2 {[%clk 0:02:43.3]} 9... d6 {[%clk
0:02:29.5]} 10. e5 {[%clk 0:02:33.8]} 10... dxe5 {[%clk 0:02:28.6]} 11. Nxe5
{[%clk 0:02:34.6]} 11... Nbd7 {[%clk 0:02:26.4]} 12. Ndf3 {[%clk 0:02:34.3]}
12... O-O {[%clk 0:02:24.5]} 13. Qe2 {[%clk 0:02:32.5]} 13... Bd5 {[%clk
0:02:17]} 14. Bg5 {[%clk 0:02:18.1]} 14... h6 {[%clk 0:02:15.8]} 15. Bh4 {[%clk
0:02:17.7]} 15... Nh5 {[%clk 0:02:12]} 16. Bxe7 {[%clk 0:01:42.6]} 16... Qxe7
{[%clk 0:02:06.3]} 17. Nxd7 {[%clk 0:01:42.8]} 17... Nf4 {[%clk 0:01:35.9]} 18.
Qe3 {[%clk 0:01:35]} 18... Nxg2 {[%clk 0:00:44.6]} 19. Kxg2 {[%clk 0:01:35.9]}
19... Qxd7 {[%clk 0:00:45.3]} 20. Be4 {[%clk 0:01:29.5]} 20... bxa4 {[%clk
0:00:44.1]} 21. Rg1 {[%clk 0:01:23.7]} 21... f6 {[%clk 0:00:41.5]} 22. Kf1
{[%clk 0:01:18.4]} 22... Rab8 {[%clk 0:00:36.3]} 23. Ra2 {[%clk 0:00:59.1]}
23... Rb7 {[%clk 0:00:31.9]} 24. Bc2 {[%clk 0:00:40.6]} 24... Qf7 {[%clk
0:00:25.2]} 25. Qxh6 {[%clk 0:00:35.6]} 25... Rfb8 {[%clk 0:00:25.2]} 26. Qh7+
{[%clk 0:00:33.3]} 26... Kf8 {[%clk 0:00:24.2]} 27. Qh8+ {[%clk 0:00:25.2]}
27... Ke7 {[%clk 0:00:22.5]} 28. Qxg7 {[%clk 0:00:24.3]} 28... Bxf3 {[%clk
0:00:21.2]} 29. Qg3 {[%clk 0:00:20.1]} 29... Qh5 {[%clk 0:00:17.7]} 30. Qg7+
{[%clk 0:00:17.9]} 30... Kd6 {[%clk 0:00:14.3]} 31. Qxf6 {[%clk 0:00:16.5]}
31... Rf7 {[%clk 0:00:11.8]} 32. Qg5 {[%clk 0:00:14.2]} 32... Rbf8 {[%clk
0:00:08.3]} 33. Rg3 {[%clk 0:00:10.7]} 33... Qxh2 {[%clk 0:00:02.9]} 34. Qe5+
{[%clk 0:00:10]} 34... Ke7 {[%clk 0:00:03.4]} 35. Qc5+ {[%clk 0:00:09.3]} 35...
Kd7 {[%clk 0:00:03.3]} 36. Bxa4+ {[%clk 0:00:09]} 36... Kd8 {[%clk 0:00:03.7]}
37. Qd6+ {[%clk 0:00:09.1]} 37... Kc8 {[%clk 0:00:03.9]} 38. Qxa6+ {[%clk
0:00:08.8]} 38... Bb7 {[%clk 0:00:02.8]} 39. Qxc4+ {[%clk 0:00:08.9]} 39... Kb8
{[%clk 0:00:03]} 40. Rg2 {[%clk 0:00:07.2]} 40... Qxg2+ {[%clk 0:00:02.1]} 41.
Ke1 {[%clk 0:00:08.1]} 41... Rxf2 {[%clk 0:00:02.2]} 42. Bc6 {[%clk 0:00:06.2]}
42... Rf1+ {[%clk 0:00:03.1]} 43. Qxf1 {[%clk 0:00:05.8]} 43... Qxf1+ {[%clk
0:00:03.6]} 44. Kd2 {[%clk 0:00:05.8]} 44... Qf2+ {[%clk 0:00:04.5]} 45. Kc1
{[%clk 0:00:05.7]} 45... Bxc6 {[%clk 0:00:05.4]} 46. Ra8+ {[%clk 0:00:05.2]}
46... Bxa8 {[%clk 0:00:05.1]} 47. Kb1 {[%clk 0:00:06.1]} 47... Be4+ {[%clk
0:00:05.7]} 48. Ka2 {[%clk 0:00:07]} 48... Kb7 {[%clk 0:00:06.2]} 49. Ka3 {[%clk
0:00:07.9]} 49... Bd5 {[%clk 0:00:06.4]} 50. Kb4 {[%clk 0:00:08.8]} 50... Ra8
{[%clk 0:00:06.8]} 51. c4 {[%clk 0:00:09.7]} 51... Qxb2+ {[%clk 0:00:07.1]} 52.
Kc5 {[%clk 0:00:10.6]} 52... Qb6# {[%clk 0:00:07.7]} 0-1

[Event "*** Titled Tuesday Blitz"]
[Site "Chess.com"]
[Date "2020.05.19"]
[Round "1"]
[White "frankshar"]
[Black "Spartakus1975"]
[Result "0-1"]
[WhiteElo "2363"]
[BlackElo "2680"]
[TimeControl "180+1"]
[EndTime "12:07:53 PDT"]
[Termination "Spartakus1975 won by resignation"]

1. d4 {[%clk 0:02:58.1]} 1... d5 {[%clk 0:02:55.3]} 2. c4 {[%clk 0:02:58]} 2...
c6 {[%clk 0:02:54.6]} 3. Nc3 {[%clk 0:02:57.7]} 3... Nf6 {[%clk 0:02:53.8]} 4.
e3 {[%clk 0:02:57.7]} 4... Bf5 {[%clk 0:02:52.9]} 5. Nf3 {[%clk 0:02:57.2]} 5...
e6 {[%clk 0:02:52.3]} 6. Nh4 {[%clk 0:02:57.2]} 6... Be4 {[%clk 0:02:44.4]} 7.
f3 {[%clk 0:02:56.9]} 7... Bg6 {[%clk 0:02:40.6]} 8. Nxg6 {[%clk 0:02:57.3]}
8... hxg6 {[%clk 0:02:39.9]} 9. Qb3 {[%clk 0:02:57.8]} 9... Qc7 {[%clk
0:02:39.2]} 10. Bd2 {[%clk 0:02:46.6]} 10... Nbd7 {[%clk 0:02:38.2]} 11. O-O-O
{[%clk 0:02:38.1]} 11... a6 {[%clk 0:02:24.9]} 12. e4 {[%clk 0:02:30.9]} 12...
dxe4 {[%clk 0:02:08.1]} 13. Nxe4 {[%clk 0:02:19.1]} 13... Nxe4 {[%clk
0:01:56.5]} 14. fxe4 {[%clk 0:02:18.5]} 14... e5 {[%clk 0:01:52.8]} 15. Qg3
{[%clk 0:02:09.3]} 15... O-O-O {[%clk 0:01:39.8]} 16. d5 {[%clk 0:01:38.4]}
16... Nc5 {[%clk 0:01:19.9]} 17. Be2 {[%clk 0:01:20]} 17... Bd6 {[%clk 0:00:53]}
18. Kb1 {[%clk 0:01:08.2]} 18... Kb8 {[%clk 0:00:43]} 19. Qf3 {[%clk 0:00:58.3]}
19... Rdf8 {[%clk 0:00:26.7]} 20. g4 {[%clk 0:00:56.1]} 20... f5 {[%clk
0:00:22]} 21. gxf5 {[%clk 0:00:49.7]} 21... gxf5 {[%clk 0:00:22.3]} 22. exf5
{[%clk 0:00:48]} 22... g6 {[%clk 0:00:19.1]} 23. f6 {[%clk 0:00:35.8]} 23... e4
{[%clk 0:00:18.8]} 24. Qg4 {[%clk 0:00:34.7]} 24... Rxf6 {[%clk 0:00:16.7]} 25.
Bc3 {[%clk 0:00:30.1]} 25... Be5 {[%clk 0:00:16.4]} 26. Bxe5 {[%clk 0:00:15.3]}
26... Qxe5 {[%clk 0:00:16.1]} 27. dxc6 {[%clk 0:00:12.5]} 27... Rxc6 {[%clk
0:00:15.9]} 28. Qg3 {[%clk 0:00:12]} 28... Qxg3 {[%clk 0:00:14.3]} 29. hxg3
{[%clk 0:00:12.9]} 29... Rxh1 {[%clk 0:00:14.3]} 30. Rxh1 {[%clk 0:00:13.2]}
30... Rf6 {[%clk 0:00:13.6]} 31. Rf1 {[%clk 0:00:12]} 31... Rxf1+ {[%clk
0:00:10.1]} 32. Bxf1 {[%clk 0:00:12.9]} 32... Kc7 {[%clk 0:00:10.2]} 33. Kc2
{[%clk 0:00:10.4]} 33... Kd6 {[%clk 0:00:09.9]} 34. b4 {[%clk 0:00:09.9]} 34...
Ne6 {[%clk 0:00:09.7]} 35. Kd2 {[%clk 0:00:06.2]} 35... Ke5 {[%clk 0:00:09.5]}
36. Ke3 {[%clk 0:00:04.8]} 36... Nd4 {[%clk 0:00:09.6]} 37. b5 {[%clk
0:00:05.3]} 37... a5 {[%clk 0:00:07.8]} 38. Bg2 {[%clk 0:00:04.6]} 38... Nf5+
{[%clk 0:00:07.4]} 39. Kf2 {[%clk 0:00:02.3]} 39... b6 {[%clk 0:00:07.5]} 40. g4
{[%clk 0:00:03.1]} 40... Nd6 {[%clk 0:00:07]} 41. Bf1 {[%clk 0:00:02]} 41... Kd4
{[%clk 0:00:06.4]} 42. Bg2 {[%clk 0:00:01.1]} 42... Nxc4 {[%clk 0:00:06.3]} 43.
Kg3 {[%clk 0:00:02]} 43... g5 {[%clk 0:00:05.1]} 44. Kf2 {[%clk 0:00:02.1]}
44... Nd6 {[%clk 0:00:05.5]} 45. Ke2 {[%clk 0:00:02]} 45... Nxb5 {[%clk
0:00:05.5]} 0-1